[Event "Czech Championship 2022"]
[Site "Usti nad Labem"]
[Date "2022.05.17"]
[Round "4.23"]
[White "Jirasko, Miroslav"]
[Black "Ret, Adam Josef"]
[Result "1/2-1/2"]
[ECO "B28"]
[WhiteElo "2091"]
[BlackElo "2093"]
[Annotator "TA"]
[PlyCount "73"]
[EventDate "2022.05.12"]
[EventType "swiss"]
[EventCountry "CZE"]
[SourceTitle "playchess.com"]
[Source "ChessBase"]
[SourceQuality "1"]
[TimeControl "40/5400+30:1800+30"]

{[%evp 9,73,23,60,6,16,4,45,21,20,22,54,-29,5,3,2,-6,57,51,60,38,75,60,68,83,76,60,53,38,68,47,97,24,27,21,33,21,45,30,38,37,143,79,80,76,80,64,83,62,137,125,132,123,134,146,103,109,127,5,13,-8,-8,-8,-8,-8,0,-8]} 1. e4 {[%emt 0:00:02]} c5 {[%emt 0:00:13]} 2. Nf3 {[%emt 0:00:06][%cal Bg1f3,Bf3d4,Bd4c2][%mdl 32]} e6 {[%emt 0:00:26]} 3. d4 {[%emt 0:00:48]} cxd4 {[%emt 0:00:18]} 4. Nxd4 {[%emt 0:00:05]} a6 {[%emt 0:00:17]} 5. c4 {[%emt 0:00:11]} Nc6 {[%emt 0:01:18]} 6. a3 {[%emt 0:04:30] B28: Sicilian: 2 Nf3 a6 (O'Kelly Variation).} (6. Nc3 $14) 6... Bc5 $11 {[%emt 0:01:54] [#]} 7. Nc2 $146 {[%emt 0:12:06]} ({Predecessor:} 7. Nb3 Be7 8. Nc3 d6 9. Be3 Nf6 10. Be2 O-O 11. O-O e5 12. Bg5 h6 13. Bxf6 Bxf6 {1-0 (38) Mansour,H (1385)-Sharda,V Tornelo INT 2021}) 7... Qh4 {[%emt 0:17:03][%csl Gc5][%cal Rh4f2] [#]} (7... Qf6 8. Qf3 Qxf3 9. gxf3 f5) 8. Qf3 {[%emt 0:25:51] White is slightly better.} Nf6 {[%emt 0:03:51]} 9. Nc3 {[%emt 0:00:29]} O-O {[%emt 0:07:26][%cal Od7d5]} (9... Nd4 10. Nxd4 Bxd4) 10. h3 {[%emt 0:09:22]} (10. g3 $14 Qg4 11. Qxg4 Nxg4 12. h3) 10... Nd4 $132 {[%emt 0:02:18][%mdl 2048] Black is fighting back} (10... d5 $5 {[%cal Rf6e4]} 11. g3 dxe4 $11) 11. Nxd4 {[%emt 0:00:28]} Bxd4 {[%emt 0:00:15]} 12. Bd3 {[%emt 0:01:59]} Qh5 {[%emt 0:02:26]} (12... d5 $11) 13. Qxh5 $14 {[%emt 0:02:10]} Nxh5 {[%emt 0:00:05]} 14. Ne2 {[%emt 0:01:26]} Bc5 {[%emt 0:01:03]} (14... Ba7) 15. e5 {[%emt 0:04:05]} g6 {[%emt 0:01:03]} 16. g4 {[%emt 0:01:39]} Ng7 {[%emt 0:01:03]} 17. b4 {[%emt 0:04:45]} Be7 {[%emt 0:00:43]} 18. Bb2 {[%emt 0:01:01]} f6 {[%emt 0:01:51][%cal Bf7f6,Bf6f5][%mdl 32]} 19. f4 {[%emt 0:01:22]} d6 {[%emt 0:05:40]} (19... b6 $14) 20. O-O {[%emt 0:05:22]} (20. exd6 $16 Bxd6 21. Be4 (21. c5 Bc7 $16)) 20... dxe5 $11 {[%emt 0:14:06]} 21. fxe5 {[%emt 0:00:08]} f5 {[%emt 0:00:20]} 22. c5 {[%emt 0:02:34]} Bd7 {[%emt 0:01:18]} 23. Nd4 {[%emt 0:00:20]} Bg5 {[%emt 0:04:10]} 24. Bc1 {[%emt 0:01:16] Prevents Be3+.} Be7 {[%emt 0:06:07]} (24... Bh4 $14) 25. Bc4 {[%emt 0:00:54]} (25. Bh6 $142) 25... fxg4 $16 {[%emt 0:03:22]} 26. hxg4 {[%emt 0:00:27]} Rxf1+ {[%emt 0:00:36]} 27. Bxf1 {[%emt 0:02:43][%cal Bc4f1,Bf1g2,Bg2d5,Bd5f7,Bf7h5][%mdl 32]} h5 {[%emt 0:06:55]} 28. gxh5 {[%emt 0:03:22]} gxh5 {[%emt 0:00:10]} (28... a5 $14) 29. Bg2 {[%emt 0:00:20]} Rb8 {[%emt 0:00:40]} 30. Be3 {[%emt 0:00:31]} Nf5 {[%emt 0:01:32]} 31. Nxf5 {[%emt 0:01:01]} exf5 {[%emt 0:00:05]} 32. Bd5+ {[%emt 0:00:22]} Kh7 {[%emt 0:00:29] [#]} 33. Kf2 {[%emt 0:00:23] White is more active.} ({White should play} 33. Rd1 $1 $16) 33... Bc6 $11 {[%emt 0:02:08] The position is equal.} 34. Bf7 {[%emt 0:01:01]} Bh4+ {[%emt 0:03:29]} 35. Ke2 {[%emt 0:01:07] Hoping for Rg1.} Bg3 {[%emt 0:00:10] aiming for ...f4.} 36. Bxh5 {[%emt 0:03:43]} Bxe5 {[%emt 0:00:36]} 37. Rd1 {[%emt 0:00:46] Weighted Error Value: White=0.25 (precise) /Black=0.24 (precise)} 1/2-1/2

[Event "Czech Championship 2022"]
[Site "Usti nad Labem"]
[Date "2022.05.17"]
[Round "4.24"]
[White "Pokrupa, Marek"]
[Black "Paulus, Vaclav"]
[Result "1-0"]
[ECO "A26"]
[WhiteElo "2117"]
[BlackElo "2093"]
[Annotator "TA"]
[PlyCount "53"]
[EventDate "2022.05.12"]
[EventType "swiss"]
[EventCountry "CZE"]
[SourceTitle "playchess.com"]
[Source "ChessBase"]
[SourceQuality "1"]
[TimeControl "40/5400+30:1800+30"]

{[%evp 14,53,6,0,16,0,6,14,4,0,-6,0,22,-2,-22,-27,5,-94,87,95,76,77,100,64,192,86,326,326,282,314,496,480,500,481,29965,29968,29954,5718,29983,29984,29984,29985]} 1. c4 {[%emt 0:14:13]} g6 {[%emt 0:00:10]} 2. g3 {[%emt 0:00:08]} Bg7 {[%emt 0:00:08]} 3. Bg2 {[%emt 0:00:04]} d6 {[%emt 0:00:25]} 4. Nc3 {[%emt 0:00:18]} e5 {[%emt 0:00:23]} 5. Nf3 {[%emt 0:00:17]} Nc6 {[%emt 0:00:16]} 6. d3 {[%emt 0:00:22]} f5 {[%emt 0:01:02]} 7. O-O {[%emt 0:00:23]} Nf6 {[%emt 0:00:20]} 8. Nd5 {[%emt 0:02:46]} h6 {[%emt 0:05:19] A26: English Opening vs King's Indian with ...Nc6 and d3.} 9. Bd2 {[%emt 0:02:46]} Nxd5 {[%emt 0:02:12]} 10. cxd5 {[%emt 0:00:06]} Ne7 {[%emt 0:00:04] The position is equal.} 11. Qb3 {[%emt 0:00:30]} O-O {[%emt 0:00:38]} 12. Rac1 {[%emt 0:00:52]} Kh7 {[%emt 0:02:14] [#]} 13. Qc4 $146 {[%emt 0:07:06]} ({Predecessor:} 13. Ba5 b6 14. Bd2 Bb7 15. e4 Qd7 16. Rc2 c5 17. dxc6 Bxc6 18. exf5 gxf5 19. Rfc1 {0-1 (33) Schrodt,S (2002)-Gallagher,D (2153) Helsingor 2019}) 13... c6 {[%emt 0:00:50]} 14. dxc6 {[%emt 0:00:09]} bxc6 {[%emt 0:00:15] [#]} (14... Nxc6 $5 {[%cal Rd6d5]} 15. Bc3 Qe7 $11) 15. Qh4 {[%emt 0:05:26] [#]} (15. Bg5 $1 $11) 15... Rb8 $2 {[%emt 0:02:41]} (15... f4 $1 $17 {stays on course. ...Bf6 is the strong threat.} 16. Ng5+ (16. gxf4 Bf6 $17) 16... Kg8) 16. Bg5 $36 {[%emt 0:07:49][%mdl 2048] Prevents Bf6. Black is under strong pressure. White is more active.} Re8 {[%emt 0:02:16]} 17. Rxc6 {[%emt 0:03:27]} Qd7 {[%emt 0:01:47]} 18. Rc2 {[%emt 0:21:40] Hoping for Rfc1.} f4 {[%emt 0:11:54]} ({Black should try} 18... e4 $1 $14) 19. g4 {[%emt 0:07:10]} (19. gxf4 $18 {Strongly threatening e4.} Nf5 20. Qh3) 19... Nd5 $2 {[%emt 0:09:56] [#]} (19... Kg8 $16 {was worth a try.}) 20. Bxh6 $1 $18 {[%emt 0:04:49][%mdl 512]} Bxh6 {[%emt 0:04:31]} 21. g5 {[%emt 0:00:33][%mdl 64] Pin} Ne7 {[%emt 0:00:43]} (21... Kh8 $142 22. Qxh6+ Qh7 23. Qxh7+ Kxh7) 22. Qxh6+ {[%emt 0:01:24]} ({Not} 22. gxh6 Nf5 23. Qg5 (23. Ng5+ Kh8 $11) 23... Bb7 $16) 22... Kg8 {[%emt 0:00:05]} 23. Nh4 {[%emt 0:04:21]} Qe6 {[%emt 0:02:03] [#]} (23... Bb7 $18 24. Nxg6 Bxg2 25. Kxg2 Nxg6 26. Qxg6+ Kh8) 24. Nxg6 $1 {[%emt 0:02:12][%mdl 512]} Nxg6 {[%emt 0:03:40] [#]} 25. Bd5 $1 {[%emt 0:00:20][%cal Oc2c7][%mdl 576] Intending Rc7! and mate. Deflection} Qxd5 {[%emt 0:00:04]} (25... Kf7 26. Qh7+) 26. Qxg6+ {[%emt 0:00:04]} Kf8 {[%emt 0:00:13]} 27. Rc7 {[%emt 0:03:56] Weighted Error Value: White=0.20 (precise) /Black=1.32} 1-0

[Event "Czech Championship 2022"]
[Site "Usti nad Labem"]
[Date "2022.05.18"]
[Round "5.1"]
[White "Hracek, Zbynek"]
[Black "Plat, Vojtech"]
[Result "1/2-1/2"]
[ECO "C41"]
[WhiteElo "2570"]
[BlackElo "2547"]
[Annotator "TA"]
[PlyCount "72"]
[EventDate "2022.05.12"]
[EventType "swiss"]
[EventCountry "CZE"]
[SourceTitle "playchess.com"]
[Source "ChessBase"]
[SourceQuality "1"]
[TimeControl "40/5400+30:1800+30"]

{[%evp 16,72,20,31,20,22,62,50,63,41,40,47,37,35,45,36,32,32,37,22,41,28,42,37,55,40,43,25,46,0,39,33,32,11,41,34,50,12,24,0,0,0,0,0,0,0,0,0,16,0,8,5,10,13,12,8,31,15,24]} 1. e4 {[%emt 0:00:03]} d6 {[%emt 0:00:09]} 2. d4 {[%emt 0:00:07]} Nf6 {[%emt 0:00:03]} 3. Nc3 {[%emt 0:00:05]} e5 {[%emt 0:00:04]} 4. Nf3 {[%emt 0:00:08]} Nbd7 {[%emt 0:00:04]} 5. Bc4 {[%emt 0:00:08]} Be7 {[%emt 0:00:03]} 6. a4 {[%emt 0:00:37]} O-O {[%emt 0:00:04]} 7. O-O {[%emt 0:00:05]} a5 {[%emt 0:00:02]} 8. Re1 {[%emt 0:00:35]} c6 {[%emt 0:00:04] 8...b6 is not played anymore.} 9. h3 {[%emt 0:02:07]} Nb6 $1 {[%emt 0:00:05] 9...Nb6 scores better than 9...exd4. C41: Philidor Defence.} 10. Bf1 {[%emt 0:02:35]} Nfd7 {[%emt 0:03:17]} 11. Be3 {[%emt 0:02:43] White is more active.} exd4 {[%emt 0:00:15] White is slightly better.} 12. Bxd4 {[%emt 0:00:19]} Re8 {[%emt 0:11:32]} 13. Qd2 {[%emt 0:07:56] [#]} Ne5 $146 {[%emt 0:02:09]} ({Predecessor:} 13... Nc5 14. b3 Qc7 15. Rad1 h6 16. Qe3 Nbd7 17. Bc4 Ne6 18. Ne2 Ne5 19. Nxe5 dxe5 {½-½ (53) Zhigalko,S (2572)-Yeletsky,I (2460) Chess.com INT 2021}) 14. Qe3 {[%emt 0:13:04]} Nbc4 {[%emt 0:06:31]} 15. Bxc4 {[%emt 0:00:16]} Nxc4 {[%emt 0:00:04]} 16. Qe2 {[%emt 0:00:05]} Be6 {[%emt 0:04:03]} 17. b3 {[%emt 0:00:12]} Nb6 {[%emt 0:01:23]} 18. Rad1 {[%emt 0:00:11]} Nd7 {[%emt 0:03:49][%cal Bb6d7,Bd7f8,Bf8g6][%mdl 32]} 19. Qd2 {[%emt 0:06:19]} Nf8 {[%emt 0:10:30]} 20. Be3 {[%emt 0:03:57][%cal Bd4e3,Be3f4,Bf4g3][%mdl 32]} (20. Ne2 {is interesting.} d5 21. Nf4 Bb4 22. c3) 20... Ng6 {[%emt 0:04:33]} 21. Nd4 {[%emt 0:04:37]} Bd7 {[%emt 0:07:30]} 22. Nf3 {[%emt 0:28:22]} (22. Nce2 $14) 22... Bf8 {[%emt 0:03:35]} 23. Qd3 {[%emt 0:03:41]} Nh4 {[%emt 0:08:09]} 24. Bf4 {[%emt 0:07:38] next Nxh4 is good for White.} Nxf3+ {[%emt 0:10:01]} (24... Qf6 $5 {[%cal Rf6f4]} 25. Ne2 (25. Bxd6 Nxf3+ 26. Qxf3 Qxf3 $11) 25... d5 $11) 25. Qxf3 {[%emt 0:00:04]} Re6 {[%emt 0:00:04][%cal Of7f5]} 26. Ne2 {[%emt 0:03:51]} Qh4 {[%emt 0:04:05]} 27. Bg3 {[%emt 0:08:04]} Qxe4 {[%emt 0:03:04]} 28. Qxe4 {[%emt 0:00:01]} Rxe4 {[%emt 0:00:05]} 29. Bxd6 {[%emt 0:00:04]} Bf5 {[%emt 0:03:38]} 30. Bxf8 {[%emt 0:00:08]} Kxf8 {[%emt 0:00:02]} 31. Rd2 {[%emt 0:01:39]} b5 {[%emt 0:04:49]} 32. Ra1 {[%emt 0:02:05]} Re7 {[%emt 0:03:35]} 33. f3 {[%emt 0:00:47]} b4 {[%emt 0:00:32]} 34. Kf2 {[%emt 0:00:48]} c5 {[%emt 0:02:37][%cal Oc5c4]} 35. g4 {[%emt 0:01:49]} Bd7 {[%emt 0:00:39]} 36. Nf4 {[%emt 0:01:34] [#] Hoping for Nd5.} Be8 {[%emt 0:01:29] Weighted Error Value: White=0.09 (flawless) /Black=0.10 (very precise)} 1/2-1/2

[Event "Czech Championship 2022"]
[Site "Usti nad Labem"]
[Date "2022.05.18"]
[Round "5.2"]
[White "Stalmach, Richard"]
[Black "Zwardon, Vojtech"]
[Result "0-1"]
[ECO "E35"]
[WhiteElo "2350"]
[BlackElo "2482"]
[Annotator "TA"]
[PlyCount "100"]
[EventDate "2022.05.12"]
[EventType "swiss"]
[EventCountry "CZE"]
[SourceTitle "playchess.com"]
[Source "ChessBase"]
[SourceQuality "1"]
[TimeControl "40/5400+30:1800+30"]

{[%evp 17,100,40,28,22,54,4,7,5,110,112,265,281,284,194,196,152,138,147,161,119,115,33,45,35,47,43,57,42,33,0,0,0,0,-42,0,0,0,-22,-21,-18,0,0,0,-87,-84,-100,-91,-121,-87,-232,-241,-254,-245,-292,-278,-369,-351,-378,-360,-586,-572,-569,-568,-549,-531,-1085,-582,-633,-633,-1294,-1250,-3027,-2831,-10512,-3823,-3038,-2256,-29956,-29964,-29966,-29968,-7039,-6841,-1604,-1568]} 1. d4 {[%emt 0:00:05]} Nf6 {[%emt 0:25:58]} 2. c4 {[%emt 0:00:11]} e6 {[%emt 0:00:02]} 3. Nc3 {[%emt 0:00:07]} Bb4 {[%emt 0:00:06]} 4. Qc2 {[%emt 0:00:05]} d5 {[%emt 0:00:03]} 5. cxd5 {[%emt 0:00:16]} exd5 {[%emt 0:00:24]} 6. Bg5 {[%emt 0:00:24][%cal Bc1g5,Bg5h4,Bh4g3][%mdl 32]} h6 {[%emt 0:00:29]} 7. Bh4 {[%emt 0:00:13]} c5 {[%emt 0:09:09]} 8. dxc5 {[%emt 0:02:07]} g5 {[%emt 0:00:20]} 9. Bg3 {[%emt 0:00:10]} Ne4 {[%emt 0:00:36]} 10. e3 {[%emt 0:00:41] E35: Nimzo-Indian: Classical: 4...d5 5 cxd5 exd5.} Qa5 {[%emt 0:01:04][%cal Re4c3]} 11. Rc1 {[%emt 0:00:37]} (11. Nge2 $1 $14) 11... Qxa2 $11 {[%emt 0:06:15] 11...Nc6 is more advanced technology.} ({Much less strong is} 11... Qxc5 12. Bd3 $14) 12. Bb5+ {[%emt 0:00:13] The position is equal.} Nc6 {[%emt 0:00:27]} (12... Bd7 $11 {keeps the balance.} 13. Bxd7+ Nxd7) 13. Nge2 $16 {[%emt 0:04:13] Strongly threatening 0-0.} Bf5 $2 {[%emt 0:05:48]} (13... Qa5 $16 14. O-O Bxc3 15. Nxc3 Nxc3 16. Qxc3 Qxc3 17. Rxc3 O-O) 14. O-O $18 {[%emt 0:04:13]} Qa5 {[%emt 0:09:54]} 15. Nxe4 {[%emt 0:05:43]} Bxe4 {[%emt 0:00:13]} 16. Bd3 {[%emt 0:00:13]} Bxd3 {[%emt 0:01:23]} 17. Qxd3 {[%emt 0:00:04]} Bxc5 {[%emt 0:00:34]} 18. Qxd5 {[%emt 0:06:18] [#]} Be7 $146 {[%emt 0:00:26]} ({Predecessor:} 18... Bb6 19. Qe4+ Kf8 20. Nc3 Re8 21. b4 Qa3 22. Bd6+ Kg7 23. Qc4 Qb2 24. b5 Na5 {0-1 (50) Villegas,P (2397)-Pacher,M (2452) Budapest 2018}) 19. Qe4 {[%emt 0:01:02]} ({White should play} 19. Qxa5 $16 Nxa5 20. Nd4) 19... Rd8 $1 $14 {[%emt 0:01:49]} 20. Nd4 {[%emt 0:07:01]} Nxd4 {[%emt 0:00:51]} 21. exd4 {[%emt 0:01:12]} Qd5 {[%emt 0:00:08]} 22. Qe2 {[%emt 0:17:59] And now Rfe1 would win.} Kf8 {[%emt 0:00:35]} 23. Be5 {[%emt 0:00:23]} f6 $1 {[%emt 0:00:30]} 24. Bc7 {[%emt 0:00:16]} Rd7 {[%emt 0:01:08]} 25. h4 {[%emt 0:05:21]} Kg7 {[%emt 0:02:20]} 26. h5 {[%emt 0:00:10]} Rc8 {[%emt 0:01:59]} (26... Qxd4 $2 27. Rfd1 Qa4 28. b3 Rxd1+ 29. Rxd1 Qxb3 30. Rd7 $18) 27. Bg3 {[%emt 0:02:05]} Rxc1 {[%emt 0:01:49]} 28. Rxc1 {[%emt 0:00:03]} Qxd4 {[%emt 0:01:03]} 29. Qc2 {[%emt 0:04:10]} Qd3 {[%emt 0:00:32] Against Qg6+} 30. Qc8 {[%emt 0:00:21]} (30. Qxd3 $1 $11 Rxd3 31. Rc7) 30... Bd8 $17 {[%emt 0:01:53] Black converts the advantage convincingly.} 31. Kh2 {[%emt 0:01:32]} Qd5 {[%emt 0:00:56]} 32. Re1 {[%emt 0:09:05]} a5 {[%emt 0:05:49]} 33. Qc2 {[%emt 0:00:28] [#]} (33. Bb8 $17) 33... Qf7 $1 $19 {[%emt 0:00:19]} 34. Kg1 {[%emt 0:03:09]} Qxh5 {[%emt 0:00:31]} 35. Qf5 {[%emt 0:02:29]} Qf7 {[%emt 0:00:21]} 36. Qg4 {[%emt 0:03:03]} h5 {[%emt 0:01:05][%cal Bh6h5,Bh5h4][%mdl 32]} 37. Qa4 {[%emt 0:00:51]} Rd5 {[%emt 0:00:17]} 38. Re8 $2 {[%emt 0:02:13]} (38. f4) 38... h4 {[%emt 0:00:50]} 39. Bb8 {[%emt 0:02:22]} b5 {[%emt 0:10:26]} 40. Qe4 {[%emt 0:00:13]} a4 {[%emt 0:00:20][%cal Ob5b4] aiming for ...b4!} 41. f4 {[%emt 0:34:46]} Qb7 {[%emt 0:35:07]} 42. Kh2 {[%emt 0:08:21][%cal Oe8d8] [#]} Qd7 {[%emt 0:00:00]} 43. Re6 {[%emt 0:00:00]} g4 {[%emt 0:00:00] Threatens to win with ...Rd1.} 44. Qe2 {[%emt 0:00:00]} Kf7 {[%emt 0:00:00]} 45. f5 {[%emt 0:00:00]} Bc7+ {[%emt 0:00:00]} 46. Bxc7 {[%emt 0:00:00]} Qxc7+ {[%emt 0:00:00]} 47. Kh1 {[%emt 0:00:16]} Rxf5 {[%emt 0:00:00]} 48. Re4 {[%emt 0:01:00]} Rc5 {[%emt 0:00:00]} 49. Rd4 {[%emt 0:00:31]} Rc1+ {[%emt 0:00:00]} 50. Rd1 {[%emt 0:00:03]} Qc2 {[%emt 0:00:00] Weighted Error Value: White=0.60/Black=0.23 (precise)} 0-1

[Event "Czech Championship 2022"]
[Site "Usti nad Labem"]
[Date "2022.05.18"]
[Round "5.3"]
[White "Navara, David"]
[Black "Kraus, Tomas"]
[Result "1-0"]
[ECO "D36"]
[WhiteElo "2682"]
[BlackElo "2472"]
[Annotator "TA"]
[PlyCount "55"]
[EventDate "2022.05.12"]
[EventType "swiss"]
[EventCountry "CZE"]
[SourceTitle "playchess.com"]
[Source "ChessBase"]
[SourceQuality "1"]
[TimeControl "40/5400+30:1800+30"]

{[%evp 21,54,37,37,35,25,37,30,36,29,41,37,31,36,24,153,143,106,9,302,229,211,215,485,369,493,472,29995,29996,29996,29997,29997,29998,29998,29999,29999]} 1. d4 {[%emt 0:00:02]} d5 {[%emt 0:01:02]} 2. c4 {[%emt 0:00:05]} e6 {[%emt 0:00:30]} 3. Nf3 {[%emt 0:00:06]} a6 {[%emt 0:02:02]} 4. cxd5 {[%emt 0:00:15]} exd5 {[%emt 0:00:06]} 5. Nc3 {[%emt 0:00:09]} Nf6 {[%emt 0:05:34]} 6. Bg5 {[%emt 0:00:19]} c6 {[%emt 0:02:44]} 7. e3 {[%emt 0:01:06]} Be7 {[%emt 0:02:17]} 8. Bd3 {[%emt 0:01:43]} h6 {[%emt 0:03:46]} 9. Bh4 {[%emt 0:00:44]} Nbd7 {[%emt 0:00:48]} 10. Qc2 {[%emt 0:03:30]} O-O {[%emt 0:00:48]} 11. O-O {[%emt 0:03:11]} Re8 {[%emt 0:01:47]} 12. Rae1 {[%emt 0:30:40] D36: Queen's Gambit Declined: Exchange Variation: Main line (5 Bg5 c6 6 Qc2).} Ne4 {[%emt 0:06:37]} 13. Bxe4 {[%emt 0:00:21]} (13. Nxe4 $2 dxe4 14. Bxe4 (14. Bxe7 $2 Qxe7 15. Bxe4 Qxe4 $19) 14... Bxh4 $19) 13... Bxh4 {[%emt 0:00:38]} 14. Bh7+ {[%emt 0:00:07] [#] White has an edge.} Kf8 $146 {[%emt 0:10:25]} ({Predecessor:} 14... Kh8 15. Bd3 Be7 16. e4 Nb6 17. Ne5 Be6 18. exd5 Nxd5 19. Bf5 Kg8 20. Bxe6 fxe6 {½-½ (42) Nesterov,A (2522)-Andreikin,D (2724) Chess.com INT 2022}) 15. e4 {[%emt 0:22:24]} dxe4 {[%emt 0:08:58]} 16. Nxh4 {[%emt 0:15:19]} Qxh4 {[%emt 0:00:07]} 17. Nxe4 {[%emt 0:00:09] Strongly threatening Nd6.} g6 {[%emt 0:06:45]} (17... Qe7 $11 {remains equal.}) 18. Nd6 $16 {[%emt 0:02:51]} Re7 {[%emt 0:07:06]} 19. d5 {[%emt 0:10:13] 0x0.002d06a4c7efdp-1022s more active pieces.} (19. Re3 $16) 19... c5 $2 {[%emt 0:11:29][%mdl 8192] [#] Black cannot hold the game after this.} (19... Qf6 $11 {and Black has nothing to worry.} 20. Rxe7 (20. dxc6 Ne5 $14) 20... Qxe7 21. dxc6 Qxd6 22. cxd7 Bxd7) 20. Nxf7 $1 $40 {[%emt 0:05:15][%mdl 640] Black is in trouble.} Rxf7 {[%emt 0:00:21]} 21. Bxg6 {[%emt 0:00:05] Really sharp!} ({Not} 21. Qxg6 Nf6 22. Re8+ (22. g3 $2 Qh3 $19) 22... Kxe8 $17) 21... Rf6 {[%emt 0:06:17]} (21... Re7 22. d6 Rxe1 23. Rxe1 Nf6) 22. Re8+ $18 {[%emt 0:00:12]} Kg7 {[%emt 0:00:03]} 23. Rfe1 {[%emt 0:01:14][%cal Bf1e1,Be1e7,Be7h7][%mdl 32] Threatening mate with R1e7+.} Nf8 {[%emt 0:01:39]} (23... Qxf2+ $18 24. Qxf2 Rxf2) 24. R1e7+ {[%emt 0:00:45] White mates.} Kg8 {[%emt 0:01:32] [#]} 25. Bf7+ $1 {[%emt 0:00:13][%mdl 576] Deflection, Decoy, Clearance} Rxf7 {[%emt 0:07:20]} 26. Qg6+ $1 {[%emt 0:00:05]} Kh8 {[%emt 0:00:04]} 27. Rxf8+ {[%emt 0:00:07][%mdl 64] Remove Defender} Rxf8 {[%emt 0:00:02]} 28. Rh7# {[%emt 0:03:20] Weighted Error Value: White=0.16 (very precise) /Black=0.90} 1-0